Cogmind - Beta 11 @@@ ROGUE MODE // 2022.03.26 @ 23:47:00 Player: Ciaphas Result: Self-destructed Performance ------------- Evolutions (1) 500 Regions Visited (4) 800 Robots Destroyed (88) 440 Value Destroyed (1791) 1791 Prototype IDs (4) 80 Alien Tech Used (0) 0 Bonus (298) 298 TOTAL SCORE: 3909 Bonus ------- High Alert Combat Kills 298 Cogmind --------- Core Integrity 193/400 Matter 280/300 Energy 265/265 System Corruption 0% Temperature Cool (0) Movement Walking (120) Location -9/Storage Parts ------- > --- POWER (1) -------- Improved Ion Engine > --- PROPULSION (3) --- Improved Aluminum Leg Improved Aluminum Leg Improved Aluminum Leg > --- UTILITY (3) ------ Heat Sink Medium Storage Unit Sensor Array > --- WEAPON (2) ------- Improved Medium Laser Mining Claw > --- INVENTORY (10) --- Compact Wheel High-capacity Matter Pod (200) Improved Medium Laser Improved Medium Laser Advanced Beam Rifle Improved Assault Rifle Rocket Launcher Peak State ------------ > --- POWER ------------ Heavy Ion Engine > --- PROPULSION ------- Improved Aluminum Leg Improved Aluminum Leg Improved Aluminum Leg > --- UTILITY ---------- Heat Sink Medium Storage Unit Medium Armor Plating > --- WEAPON ----------- Improved Medium Laser Improved Medium Laser > --- INVENTORY -------- Improved Ion Engine Improved Aluminum Leg Compact Wheel Heat Sink High-capacity Matter Pod Sensor Array Advanced Beam Rifle Improved Assault Rifle Rocket Launcher Mining Claw [Rating: 20] Favorites ----------- Power Light Ion Engine Engine Light Ion Engine Propulsion Aluminum Leg Leg Aluminum Leg Utility Medium Storage Unit Device Heat Sink Storage Medium Storage Unit Processor Signal Interpreter Protection Medium Armor Plating Weapon Improved Medium Laser Energy Gun Improved Medium Laser Ballistic Gun Assault Rifle Launcher Grenade Launcher Slashing Weapon Mining Claw Build | -11 -10 -10 -9 -9 ------- Run | Scr Mat Min Mat Sto Slots Evolved 2 | . . . 2 . Power . | . . . . . Propulsion 1 | . . . 1 . Utility 1 | . . . 1 . Weapon . | . . . . . Parts Attached 65 | 1 11 . 43 10 Power 6 | . 1 . 4 1 Engine 6 | . 1 . 4 1 Core . | . . . . . Reactor . | . . . . . Propulsion 14 | . 2 . 10 2 Treads . | . . . . . Leg 14 | . 2 . 10 2 Wheel . | . . . . . Hover . | . . . . . Flight . | . . . . . Utility 15 | . 4 . 9 2 Device 9 | . 2 . 5 2 Storage 1 | . 1 . . . Processor 1 | . . . 1 . Hackware . | . . . . . Protection 4 | . 1 . 3 . Artifact . | . . . . . Weapon 30 | 1 4 . 20 5 Energy Gun 18 | 1 3 . 11 3 Energy Cannon . | . . . . . Ballistic Gun 4 | . 1 . 2 1 Ballistic Cannon . | . . . . . Launcher 5 | . . . 5 . Special Weapon . | . . . . . Impact Weapon . | . . . . . Slashing Weapon 3 | . . . 2 1 Piercing Weapon . | . . . . . Special Melee Weapon . | . . . . . Unidentified Prototypes 4 | . . . 4 . Parts Lost 9 | . 1 . 5 3 Power 1 | . . . 1 . Propulsion 2 | . . . 1 1 Utility 4 | . . . 2 2 Weapon 2 | . 1 . 1 . Highest Loss Streak 4 | . 1 . 4 2 To Critical Strikes . | . . . . . Average Slot Usage (%) 97 | . 95 100 98 98 Engine 11 | . 14 14 10 11 Leg 31 | . 28 28 32 32 Device 11 | . 6 14 11 19 Storage 11 | . 14 14 11 11 Protection 5 | . 3 . 7 1 Energy Gun 22 | . 27 28 19 19 Naked Turns . | . . . . . Heaviest Build 32 | 11 18 18 32 32 Greatest Support 39 | 20 20 20 39 39 Greatest Overweight (x) 1 | . . . 1 . Average Overweight (x) . | . . . . . Largest Inventory Capacity 10 | 8 10 10 10 10 Average Capacity 9 | 8 9 10 10 10 Most Carried 10 | 7 10 10 10 10 Average Carried 7 | 3 6 9 8 7 Final Capacity 10 | 8 10 10 10 10 Final Carried 10 | 3 10 9 10 7 Class Distribution -------------------- 64% | Mutant 35% | Scavenger-Mutant Dominant Class ---------------- Mutant | -10/Materials Scavenger-Mutant | -10/Mines Scavenger-Mutant | -9/Materials Mutant | -9/Storage Resources | -11 -10 -10 -9 -9 ----------- Run | Scr Mat Min Mat Sto Matter Collected 1183 | 210 309 10 519 135 Remotely . | . . . . . Salvage Created 2811 | 83 442 67 1379 840 Parts 192 | 3 36 2 102 49 Haulers Intercepted 9 | . 2 . 5 2 Recyclers Shooed 5 | . 1 . . 4 Parts Field Recycled . | . . . . . Retrieved Matter . | . . . . . Parts Self-Destructed . | . . . . . Prevented . | . . . . . Kills | -11 -10 -10 -9 -9 ------- Run | Scr Mat Min Mat Sto Combat Hostiles Destroyed 55 | . 10 . 33 12 Melee 2 | . . . 2 . Guns 39 | . 8 . 19 12 AOE 14 | . 2 . 12 . Classes Destroyed 11 | 2 5 . 4 . Worker 4 | . 1 . 3 . Builder 4 | . . . 3 1 Tunneler 1 | 1 . . . . Hauler 9 | . 2 . 5 2 Recycler 5 | 1 . 1 1 2 Operator 4 | . . . 1 3 Watcher 6 | . 2 . 4 . Swarmer 21 | . 6 . 15 . Grunt 23 | . 4 . 10 9 Duelist 1 | . . . 1 . Sentry 10 | . . . 7 3 Best Kill Streak 13 | 2 3 1 13 8 Combat Bots Only 8 | . 3 . 8 4 Max Kills in Single Turn 3 | 1 2 1 3 2 Gunslinging 1 | . . . . 1 Exploded 2 | . 2 . 2 . Melee 1 | . . . 1 . Uniques/NPCs Destroyed . | . . . . . Combat | -11 -10 -10 -9 -9 -------- Run | Scr Mat Min Mat Sto Damage Taken 2244 | . 429 . 1171 644 Core 317 | . 110 . 114 93 Absorbed by Shields . | . . . . . Redirected to Shielding 14 | . 14 . . . Core Remaining (%) 78 | 100 . 56 . . Volleys Fired 200 | 6 38 3 71 82 Largest 2 | 2 2 2 2 2 Hottest 122 | 80 105 105 122 112 Shots Fired 385 | 11 74 6 133 161 Gun 374 | 11 74 6 122 161 Cannon . | . . . . . Launcher 11 | . . . 11 . Special . | . . . . . Kinetic 25 | . 2 . 8 15 Thermal 325 | 5 54 6 114 146 Explosive 11 | . . . 11 . Electromagnetic 24 | 6 18 . . . Robot Hit Streak 11 | 3 11 5 10 11 Robot Miss Streak 4 | 2 3 1 3 4 Penetration Max . | . . . . . Secondary Targets 4 | . . . . 4 Max Gunslinging Chain 1 | . . . . 1 Shots Hit Robots 209 | 7 53 4 83 62 Core Hits 106 | 3 21 2 56 24 Critical Kills . | . . . . . Critical Parts Destroyed . | . . . . . Critical Strikes 20 | . 1 . 10 9 Burn 20 | . 1 . 10 9 Melee Attacks 11 | . . . 9 2 Impact . | . . . . . Slashing 11 | . . . 9 2 Piercing . | . . . . . Sneak Attacks . | . . . . . Combat Hostiles . | . . . . . Follow-up Attacks . | . . . . . Damage Inflicted 4465 | 90 731 48 2473 1123 Guns 3466 | 90 660 48 1545 1123 Cannons . | . . . . . Explosions 878 | . 71 . 807 . Melee 121 | . . . 121 . Ramming . | . . . . . Kinetic 311 | . 15 . 70 226 Thermal 2979 | 34 525 48 1475 897 Explosive 807 | . . . 807 . Electromagnetic 247 | 56 191 . . . Impact . | . . . . . Slashing 121 | . . . 121 . Piercing . | . . . . . Highest Corruption 3 | . 3 3 . . Average Corruption 2 | . 2 3 . . Corruption Purged . | . . . . . Corruption Blocked . | . . . . . Effects 14 | . 11 3 . . Message Errors 5 | . 4 1 . . Matter Fused 1 | . 1 . . . Energy Discharges 3 | . 2 1 . . Data Loss (minor) 2 | . 1 1 . . Alerts 2 | . 2 . . . Weapon Failures 1 | . 1 . . . Overload Shots . | . . . . . Overflow Damage 4 | . . . 4 . Projectiles . | . . . . . Explosions 4 | . . . 4 . Melee . | . . . . . Knockbacks . | . . . . . Impact . | . . . . . Kinetic . | . . . . . Secondary . | . . . . . Self-Inflicted Damage 83 | . 30 . 53 . Shots 4 | . 1 . 3 . Rammed . | . . . . . Targets Rammed . | . . . . . Kicked . | . . . . . Crushed . | . . . . . Highest Temperature 300 | 92 300 30 192 244 Average Temperature 70 | 51 64 13 47 93 Received Heat Transfer 729 | . 129 . 306 294 Effects 4 | . . . . 4 Interference 4 | . . . . 4 Siege Activations . | . . . . . Robots Corrupted . | . . . . . Combat Hostiles . | . . . . . Parts Fried 1 | . 1 . . . Impact Corruptions . | . . . . . Robots Melted . | . . . . . Combat Hostiles . | . . . . . Parts Melted 10 | . 1 . 4 5 Heat Transferred 7610 | 75 1207 112 3589 2627 Parts Sabotaged . | . . . . . Parts Stolen . | . . . . . Parts Stripped . | . . . . . Power Chain Reactions 1 | . 1 . . . Missiles Intercepted . | . . . . . Alert | -11 -10 -10 -9 -9 ------- Run | Scr Mat Min Mat Sto Peak Influence 871 | 10 223 80 871 751 Initial 367 | . 6 75 31 367 Average 418 | 8 130 75 562 607 Maximum Alert Level 3 | . 1 . 3 3 Low Security (%) 33 | 100 84 100 7 . Level 1 15 | . 15 . 20 6 Level 2 30 | . . . 43 52 Level 3 20 | . . . 27 40 Level 4 . | . . . . . Level 5 . | . . . . . High Security . | . . . . . Max Security . | . . . . . Squads Dispatched 12 | . 4 . 3 5 Investigation 6 | . 3 . 2 1 Extermination . | . . . . . Reinforcement 5 | . 1 . 1 3 Assault 1 | . . . . 1 Garrison . | . . . . . Intercept . | . . . . . Searches Triggered . | . . . . . Construction Impeded . | . . . . . Haulers Reinforced . | . . . . . Active Scanning Responses . | . . . . . Cargo Convoy Interrupts . | . . . . . Stealth | -11 -10 -10 -9 -9 --------- Run | Scr Mat Min Mat Sto Distress Signals 9 | . . . 5 4 Communications Jammed . | . . . . . Distress Signals . | . . . . . Times Spotted 79 | . 16 . 45 18 Peak Tracking Total 5 | . 3 . 5 5 Tactical Retreats 3 | . 1 . 2 . Traps | -11 -10 -10 -9 -9 ------- Run | Scr Mat Min Mat Sto Traps Triggered 8 | . 4 . 2 2 Indirectly . | . . . . . Trap Hack Attempts . | . . . . . Triggered . | . . . . . Disarmed . | . . . . . Reprogrammed . | . . . . . Reused . | . . . . . Traps Extracted . | . . . . . Installed . | . . . . . Triggered . | . . . . . Machines | -11 -10 -10 -9 -9 ---------- Run | Scr Mat Min Mat Sto Machines Disabled 6 | . 1 . 2 3 Max in Single Turn 1 | . 1 . 1 1 Machines Sabotaged . | . . . . . Garrisons Compromised . | . . . . . Overloaded Fab Kills . | . . . . . Hacking | -11 -10 -10 -9 -9 --------- Run | Scr Mat Min Mat Sto Machines Accessed 13 | . 5 . 7 1 Terminals 9 | . 3 . 5 1 Fabricators . | . . . . . Repair Stations . | . . . . . Recycling Units 4 | . 2 . 2 . Scanalyzers . | . . . . . Garrison Access . | . . . . . Total Hacks 36 | . 18 . 15 3 Successful 18 | . 10 . 7 1 Failed 18 | . 8 . 8 2 Catastrophic 5 | . 1 . 3 1 Database Lockouts . | . . . . . Manual 31 | . 15 . 12 4 Terminals 31 | . 15 . 13 3 Fabricators . | . . . . . Repair Stations . | . . . . . Recycling Units 5 | . 3 . 2 . Scanalyzers . | . . . . . Garrison Access . | . . . . . Terminal Hacks 6 | . 2 . 3 1 Robot Analysis 1 | . 1 . . . Branch Access Points 2 | . 1 . 1 . Alert Level 2 | . . . 1 1 Unreport Threat 1 | . . . 1 . Fabricator Hacks . | . . . . . Repair Station Hacks . | . . . . . Recycling Unit Hacks 2 | . 2 . . . Report Inventory 2 | . 2 . . . Scanalyzer . | . . . . . Garrison Access Hacks . | . . . . . Unauthorized Hacks 10 | . 6 . 4 . Terminals 7 | . 5 . 2 . Track 2 | . 2 . . . Botnet 4 | . 2 . 2 . Operators 1 | . 1 . . . Fabricators . | . . . . . Repair Stations . | . . . . . Recycling Units 3 | . 1 . 2 . Tunnel 3 | . 1 . 2 . Scanalyzers . | . . . . . Garrison Access . | . . . . . Data Cores Recovered . | . . . . . Used . | . . . . . Hacking Detections 8 | . 3 . 4 1 Full Trace Events 1 | . . . . 1 Feedback Events . | . . . . . Feedback Blocked . | . . . . . Robot Schematics Acquired . | . . . . . Robots Built . | . . . . . Authchips . | . . . . . Time . | . . . . . Total Robot Build Rating . | . . . . . Part Schematics Acquired . | . . . . . Parts Built . | . . . . . Authchips . | . . . . . Time . | . . . . . Total Part Build Rating . | . . . . . Parts Repaired . | . . . . . Time . | . . . . . Parts Recycled . | . . . . . Recycled Matter . | . . . . . Retrieved Matter . | . . . . . Retrieved Components . | . . . . . Parts Scanalyzed . | . . . . . Part Schematics Acquired . | . . . . . Parts Damaged . | . . . . . Bothacking | -11 -10 -10 -9 -9 ------------ Run | Scr Mat Min Mat Sto Used RIF Installer . | . . . . . Robots Hacked . | . . . . . Non-combat . | . . . . . Combat . | . . . . . Robot Hacks Applied . | . . . . . Relay Couplers Released . | . . . . . Fabnet Peak Effective % . | . . . . . Robots Rewired . | . . . . . Allies Hacked . | . . . . . Hacks Repelled . | . . . . . Allies | -11 -10 -10 -9 -9 -------- Run | Scr Mat Min Mat Sto Total Allies . | . . . . . Largest Group . | . . . . . Highest-Rated Group . | . . . . . Highest-Rated Ally . | . . . . . Total Orders . | . . . . . Ally Attacks . | . . . . . Total Damage . | . . . . . Kills . | . . . . . Allies Corrupted . | . . . . . Allies Melted . | . . . . . Intel | -11 -10 -10 -9 -9 ------- Run | Scr Mat Min Mat Sto Robot Analysis Total 1 | . 1 . . . Derelict Logs Recovered . | . . . . . Drone Launches . | . . . . . Drone Recoveries . | . . . . . Exploration | -11 -10 -10 -9 -9 ------------- Run | Scr Mat Min Mat Sto Turns Passed 2341 | 59 649 86 1126 421 Spaces Moved 1196 | 32 385 63 601 115 Core . | . . . . . Treads . | . . . . . Legs 1196 | 32 385 63 601 115 Wheels . | . . . . . Hover . | . . . . . Flight . | . . . . . Fastest Speed 120 | 120 120 120 120 120 Average Speed 123 | 120 120 120 127 120 Slowest Speed 190 | 120 120 120 190 120 Overloaded Moves . | . . . . . Propulsion Burnouts . | . . . . . Robots Hopped . | . . . . . Cave-ins Triggered . | . . . . . Exploration Rate (%) 35 | 3 62 23 67 22 Regions Visited 4 Branch Regions 2 Pre-discovered Areas 3 | . 1 . 2 . Known Exits Taken 2 | . 1 . 1 . Unknown Exits Taken 2 | 1 . 1 . . Scrap Searched 1 | . . 1 . . Spaces Dug 14 | . . . 14 . Terrain Destroyed 60 | . 4 . 56 . Melee 2 | . . . 2 . Projectile . | . . . . . AOE 58 | . 4 . 54 . Terrain Rammed . | . . . . . Walls Destroyed . | . . . . . Machines Disabled . | . . . . . Actions | -11 -10 -10 -9 -9 --------- Run | Scr Mat Min Mat Sto Total 1641 | 44 496 68 803 230 Wait 127 | . 50 . 56 21 Move 1192 | 31 384 62 600 115 Hop . | . . . . . Pick Up 14 | 1 5 1 7 . Fast Attach 15 | . 5 . 10 . Attach 13 | 1 1 . 7 4 Detach 8 | 1 4 . 3 . Swap 37 | . 5 . 26 6 Drop 24 | 4 4 2 14 . Fire 200 | 6 38 3 71 82 Melee 11 | . . . 9 2 Ram . | . . . . . Kick . | . . . . . Crush . | . . . . . Escape Stasis . | . . . . . Rewire . | . . . . . Trap . | . . . . . Miscellaneous . | . . . . . Route ------- -11/Scrapyard -10/Materials (discovered 2 exits: *Mat / *Min) -10/Mines (discovered 2 exits: *Mat x2) -9/Materials (discovered 4 exits: [*Mat x2] / *Min / *Sto) -9/Storage History --------- Turn | Location | Event 19 | -11/Scrapyard | Discovered new exit (range 3) 60 | -11/Scrapyard | Entered Materials 303 | -10/Materials | Build established: Mutant 358 | -10/Materials | Identified exit to Mines 454 | -10/Materials | Discovered new exit (range 14) 709 | -10/Materials | Entered Mines 713 | -10/Mines | Met a Derelict bent on vengeance 724 | -10/Mines | Discovered new exit (range 15) 775 | -10/Mines | Discovered new exit (range 9) 795 | -10/Mines | Entered Materials 795 | -9/Materials | Evolved 2 slots: Propulsion x1, Utility x1 927 | -9/Materials | Destroyed 8 combat bots 929 | -9/Materials | Build established: Scavenger-Mutant 1084 | -9/Materials | Discovered new exit (range 8) 1291 | -9/Materials | Discovered new exit (range 13) 1358 | -9/Materials | Destroyed 7 combat bots 1376 | -9/Materials | Lost 4 parts (1p1n1u1w) 1692 | -9/Materials | Build established: Mutant 1742 | -9/Materials | Discovered new exit (range 15) 1802 | -9/Materials | Identified exit to Mines 1802 | -9/Materials | Identified exit to Storage 1921 | -9/Materials | Entered Storage 2146 | -9/Storage | Core integrity fell below 50% 2321 | -9/Storage | First assault squad dispatched 2342 | -9/Storage | Self-destructed Last Messages --------------- 02147_ G-34 Mercenary destroyed. 02150_ Aluminum Leg melted. 02150_ Heat Sink melted. 02150_ G-34 Mercenary destroyed. 02173_ Overheating: System interference. 02173_ Imp. Medium Laser temporarily disabled. 02173_ Imp. Medium Laser temporarily disabled. 02220_ K-01 Serf collects debris. 02234_ Acquired 10 matter. 02235_ K-01 Serf collects debris. 02237_ A-02 Transporter suffers critical hit (Burn). 02237_ A-02 Transporter destroyed. 02238_ K-01 Serf collects debris. 02240_ W-16 Scout suffers critical hit (Burn). 02241_ K-01 Serf collects debris. 02311_ Storage Shell breached. 02321_ ALERT: Significant disruption in Zone 9Y, assault force dispatched. Map ----- +----------------------------------------------------+ | # """ " ""????????????????????????????????? | | =# %""""" Y"???????????????????????????????? | | [=# """"" """???????????????????????????????? | | %[# """"" ####??????????????????????????????? | | %#% ?????????????????????????????? | | =%+% ?????????????????????????????? | | %*#*%* ?????????????????????????????? | | ==###%############???????????????????????????????? | | "!#?# #"""#??????????????????????????????????????? | | "=###+#"Y"####???????????????????????????????????? | | " # % #???????????????????????????????????? | | # ##???????????????????????????????????? | | ### #????????????????????????????????????? | | ??# ! #????????????????????????????????????? | | ??# """%""" #?######?????????????????????????????? | | ??# "" %""" #?# ??????????????????????????????? | | ??# """*""" #?# ???????????????????????????????? | | ??# * #?# #???????????????????????????????? | | ??###+#######?# ######+####?????????????????????? | | ??# ######## ## ? #?????????????????????? | | ??+ |[/ ## #?????????????????????? | | ??# *|%[= / """"" #?????????????????????? | | ??# =%/####+####### = =" #?????????????????????? | | ??##%!##?? ?????# """"" #?????????????????????? | | ???#* #??? ?????# """"" #?????????????????????? | | ???# #??#"""#????# "[[] @ #?????????????????????? | | ???# #???????????# """"" #?????????????????????? | | ???# ##??????????# #?????????????????????? | | ???# T#??????????##########?????????????????????? | | ???# ##?????????????????????????????????????????? | | ???""""??????????????????????????????????????????? | | ?????????????????????????????????????????????????? | | ?????????????????????????????????????????????????? | | ?????????????????????????????????????????????????? | | ?????????????????????????????????????????????????? | | ?????????????????????????????????????????????????? | | ?????????????????????????????????????????????????? | | ?????????????????????????????????????????????????? | | ?????????????????????????????????????????????????? | | ?????????????????????????????????????????????????? | | ?????????????????????????????????????????????????? | | ?????????????????????????????????????????????????? | | ?????????????????????????????????????????????????? | | | | | | | | | | | | | | | +----------------------------------------------------+ Best States ------------- Heat Dissipation 38 Energy Generation 14 Energy Capacity 280 Matter Stores 300 Matter Capacity 300 Sight Range 16 Robot Scan Range 14 Terrain Scan Density 10 Armor Coverage 225 Weapon Shielding 33 Evasion (%) 55 Item Schematics ----------------- None Robot Schematics ------------------ None Fabricated ------------ Nothing Alien Tech Used ----------------- None Achievements -------------- None Challenges ------------ None Game ------ Seed MetafiberBladeDrive Manual? 0 Play Time 00:38:20 Cumulative 15.4 hours Start 2022.03.26 @ 23:07:32 End 2022.03.26 @ 23:47:00 Sessions 1 Manual Loads 0 Difficulty Rogue Special Mode None Game No. 19 Rogue 12 Adventurer 7 Explorer 0 Win Type - Total 0 Types 0/0/0/0/0/0/0/0/0 Lore% 22 Gallery% 19 Achievement% 20 Wizard Run 0 Options --------- ASCII 1 Keyboard 0 Movement Mouse Keybinds 0 Fullscreen 2 Font 24/Proggy Map View 50x50 Tactical HUD 1 Map Filters NONE Filters NONE Steam 1 RUN: 28765699-7b94-4637-90e8-a7d008dbef10